Workbook

Sheet 시작

Sheet 1
C1: =MID(CELL("filename",C1),FIND("]",CELL("filename",C1))+1,255)&" 페이지" -> 1 페이지
C5: WHY? 🡢
D7: 선입선출은 '박스당 관리'를 기본 원칙으로 하고 있기 때문에
D8: VBA (또는 외부 프로그램의 도움없이) 박스당 관리를 사람이 직접 한다는 것은 현실적으로 불가능합니다.
D9: (P.s…) 실무에서는 다양한 외부요인으로 인하여 선입선출 되지 않는 상황이 100% 발생하므로
D10: 매뉴얼로 관리해줘야 하는 상황이 무조건 발생합니다..
C12: BUT…
D14: VBA 또는 외부프로그램을 사용할 상황이 되지 않는 경우, 엑셀 내부기능만으로 관리할 수 있는 선에서 타협을 본다면
D15: 아래 수준으로 선입선출 재고 관리가 가능합니다.
D16: Ⅰ. 판매된 재고 원가를 '건by건' 이 아닌 '월 또는 특정 기간 단위'로 끊어서 관리해도 괜찮을 경우
D17: Ⅱ. 매뉴얼로 관리해줘야되는 Special Case는 별도의 표로 관리 괜찮을 경우
C19: 재고관리 - 관리 수준 예제
D20: 모든 업무가 그렇듯이.. 관리수준이 높아 질수록 🡢
D21: 1. 관리해야 할 데이터의 양은 ^n (제곱)으로 많아집니다.
D22: 2. (실무자 입장에서) 처리해야 할 업무 또한 배로 증가합니다
D23: 3. 문제 발생시 역순으로 원인을 해결하기 용이합니다. (e.g. 스커트 염색에 문제가 생겼다는 고객 문의가 들어왔을 경우.. 제품 S/N : SKIRT002-04, 만약 제품이 의료제품이라면..?)
D24: 4. 비용과 효용을 고려하여 적절한 관리수준을 채용

Sheet 2
C1: =MID(CELL("filename",C1),FIND("]",CELL("filename",C1))+1,255)&" 페이지" -> 2 페이지
C2: [입고수량] | I2: [출고수량]
C3: 박스ID | D3: 입고일 | E3: 주문번호 | F3: 제품명 | G3: 수량 | I3: 박스ID | J3: 입고일 | K3: 주문번호 | L3: 제품명 | M3: 수량 | O3: 주문이 들어왔습니다.
C4: BOX001 | D4: 2020-01-01 | E4: A192001 | F4: 스커트 | G4: 50 | O4: 스커트 250개 + 청치마 400개
C5: BOX002 | D5: 2020-01-01 | E5: A192001 | F5: 청치마 | G5: 70
C6: BOX003 | D6: 2020-01-01 | E6: A192002 | F6: 스커트 | G6: 100
C7: BOX004 | D7: 2020-01-01 | E7: A192002 | F7: 청치마 | G7: 100
C8: BOX005 | D8: 2020-01-02 | E8: A192003 | F8: 스커트 | G8: 200
C9: BOX006 | D9: 2020-01-02 | E9: A192003 | F9: 청치마 | G9: 200
C10: BOX007 | D10: 2020-01-02 | E10: A192003 | F10: 면바지 | G10: 200
C11: BOX008 | D11: 2020-01-02 | E11: A192004 | F11: 겨울점퍼 | G11: 200
C12: BOX009 | D12: 2020-01-02 | E12: A192004 | F12: 청바지 | G12: 200
C13: BOX010 | D13: 2020-01-03 | E13: A192005 | F13: 청치마 | G13: 200
C14: BOX011 | D14: 2020-01-03 | E14: A192005 | F14: 스커트 | G14: 200
C15: BOX012 | D15: 2020-01-03 | E15: A192005 | F15: 면바지 | G15: 200

Sheet 2-1
D1: =MID(CELL("filename",D1),FIND("]",CELL("filename",D1))+1,255)&" 페이지" -> 2-1 페이지
D3: 2020-01-01 | F3: 2020-01-01 | H3: 2020-01-02 | J3: 2020-01-02 | L3: 2020-01-04 | N3: 2020-01-05
D4: 50 | F4: 100 | H4: 50 | J4: 100 | L4: 50 | N4: 100
B6: 총 판매수량 | C6: 현재 박스수량 | D6: =D4 -> 50 | F6: =F4 -> 100 | H6: =H4 -> 50 | J6: =J4 -> 100 | L6: =L4 -> 50 | N6: =N4 -> 100
B7: 101
C9: 총 판매수량 | D9: =$B$7 -> 101 | F9: =$B$7 -> 101 | H9: =$B$7 -> 101 | J9: =$B$7 -> 101 | L9: =$B$7 -> 101 | N9: =$B$7 -> 101
C10: - 이전 입고수량 | D10: =SUM($C$4:C4) -> 0 | F10: =SUM($C$4:E4) -> 50 | H10: =SUM($C$4:G4) -> 150 | J10: =SUM($C$4:I4) -> 200 | L10: =SUM($C$4:K4) -> 300 | N10: =SUM($C$4:M4) -> 350
D11: =IF(D9-D10<0,0,D9-D10) -> 101 | F11: =IF(F9-F10<0,0,F9-F10) -> 51 | H11: =IF(H9-H10<0,0,H9-H10) -> 0 | J11: =IF(J9-J10<0,0,J9-J10) -> 0 | L11: =IF(L9-L10<0,0,L9-L10) -> 0 | N11: =IF(N9-N10<0,0,N9-N10) -> 0
B14: 출고 수량은 🡢 | C14: 둘중 작은 값 | D14: =MIN(D6,D11) -> 50 | F14: =MIN(F6,F11) -> 51 | H14: 0 | J14: 0 | L14: 0 | N14: 0
B16: 기말재고 수량은 🡢 | C16: 입고-출고수량 | D16: =D6-D14 -> 0 | F16: =F6-F14 -> 49 | H16: 50 | J16: 100 | L16: 50 | N16: 100

Sheet 3
C1: =MID(CELL("filename",C1),FIND("]",CELL("filename",C1))+1,255)&" 페이지" -> 3 페이지 | AC1: https://www.oppadu.com/vlookup-함수-여러개-값-출력/
AC2: =INDEX($출력범위, SMALL(IF(($찾을값=$찾을범위),MATCH(ROW($찾을범위), ROW($찾을범위)), ""), ROWS($A$1:A1)), COLUMNS($A$1:A1))
B3: 구매내역 | H3: 판매내역 | K3: 출고내역 | Q3: 기말재고 | W3: 기말재고_필터 | AC3: 기말재고_필터
B5: Box | C5: 입고일 | D5: 단가 | E5: 수량 | F5: 금액 | H5: 판매일 | I5: 수량 | K5: Box | L5: 입고일 | M5: 단가 | N5: 수량 | O5: 금액 | Q5: Box | R5: 입고일 | S5: 단가 | T5: 수량 | U5: 금액 | W5: Box | X5: 입고일 | Y5: 단가 | Z5: 수량 | AA5: 금액 | AC5: Box | AD5: 입고일 | AE5: 단가 | AF5: 수량 | AG5: 금액
D6: =F6/E6 -> 0 | E6: =SUM(E8:E1048576) -> 1400 | F6: =SUM(F8:F1048576) -> 0 | H6: - | I6: =SUM(I8:I1048576) -> 100 | N6: =SUM(N8:N1048576) -> 0 | O6: =SUM(O8:O1048576) -> 0 | S6: =U6/T6 ->  | T6: =SUM(T8:T1048576) -> 0 | U6: =SUM(U8:U1048576) -> 0 | Y6: =AA6/Z6 ->  | Z6: =SUM(Z8:Z1048576) -> 0 | AA6: =SUM(AA8:AA1048576) -> 0 | AE6: =AG6/AF6 ->  | AF6: =SUM(AF8:AF1048576) -> 0 | AG6: =SUM(AG8:AG1048576) -> 0
B8: 1 | C8: 2020-01-01 | D8: 3700 | E8: 100 | H8: 2020-01-01 | I8: 100
B9: 2 | C9: 2020-01-02 | D9: 5700 | E9: 200
B10: 3 | C10: 2020-01-03 | D10: 3900 | E10: 100
B11: 4 | C11: 2020-01-07 | D11: 8100 | E11: 50
B12: 5 | C12: 2020-01-10 | D12: 5500 | E12: 300
B13: 6 | C13: 2020-01-15 | D13: 3650 | E13: 200
B14: 7 | C14: 2020-01-17 | D14: 7500 | E14: 100
B15: 8 | C15: 2020-01-19 | D15: 3900 | E15: 300
B16: 9 | C16: 2020-01-23 | D16: 7300 | E16: 50

Sheet 4
C1: =MID(CELL("filename",C1),FIND("]",CELL("filename",C1))+1,255)&" 페이지" -> 4 페이지 | AH1: https://www.oppadu.com/vlookup-함수-여러개-값-출력/
AH2: =INDEX($출력범위, SMALL(IF(($찾을값=$찾을범위),MATCH(ROW($찾을범위), ROW($찾을범위)), ""), ROWS($A$1:A1)), COLUMNS($A$1:A1))
B3: 구매내역 | I3: 판매내역 | M3: 출고내역 | T3: 기말재고 | AA3: 기말재고_필터 | AH3: 기말재고_필터
B5: Box | C5: 입고일 | D5: 제품명 | E5: 단가 | F5: 수량 | G5: 금액 | I5: 판매일 | J5: 제품명 | K5: 수량 | M5: Box | N5: 입고일 | O5: 제품명 | P5: 단가 | Q5: 수량 | R5: 금액 | T5: Box | U5: 입고일 | V5: 제품명 | W5: 단가 | X5: 수량 | Y5: 금액 | AA5: Box | AB5: 입고일 | AC5: 제품명 | AD5: 단가 | AE5: 수량 | AF5: 금액 | AH5: Box | AI5: 입고일 | AJ5: 제품명 | AK5: 단가 | AL5: 수량 | AM5: 금액
E6: =G6/F6 -> 4978.571429 | F6: =SUM(F8:F1048576) -> 1400 | G6: =SUM(G8:G1048576) -> 6970000 | I6: - | J6: - | K6: =SUM(K8:K1048576) -> 200 | Q6: =SUM(Q8:Q1048576) -> 200 | R6: =SUM(R8:R1048576) -> 940000 | W6: =Y6/X6 -> 5025 | X6: =SUM(X8:X1048576) -> 1200 | Y6: =SUM(Y8:Y1048576) -> 6030000 | AD6: =AF6/AE6 -> 5025 | AE6: =SUM(AE8:AE1048576) -> 1200 | AF6: =SUM(AF8:AF1048576) -> 6030000 | AK6: =AM6/AL6 -> 5025 | AL6: =SUM(AL8:AL1048576) -> 1200 | AM6: =SUM(AM8:AM1048576) -> 6030000
B8: 1 | C8: 2020-01-01 | D8: 선풍기 | E8: 3700 | F8: 100 | G8: =F8*E8 -> 370000 | I8: 2020-01-01 | J8: 선풍기 | K8: 100 | M8: =B8 -> 1 | N8: =C8 -> 2020-01-01 | O8: =D8 -> 선풍기 | P8: =E8 -> 3700 | Q8: =MIN(F8,IF(SUMIF(J:J,O8,K:K)-SUMIFS(F:F,D:D,O8,C:C,"<"&N8)-SUMIFS($Q$7:Q7,$O$7:O7,O8,$N$7:N7,N8)<0,0,SUMIF(J:J,O8,K:K)-SUMIFS(F:F,D:D,O8,C:C,"<"&N8)-SUMIFS($Q$7:Q7,$O$7:O7,O8,$N$7:N7,N8))) -> 100 | R8: =Q8*P8 -> 370000 | T8: =B8 -> 1 | U8: =C8 -> 2020-01-01 | V8: =D8 -> 선풍기 | W8: =E8 -> 3700 | X8: =F8-Q8 -> 0 | Y8: =X8*W8 -> 0 | AA8: =_xlfn._xlws.FILTER(T8:Y23,X8:X23>0) -> 2 | AB8: 2020-01-03 | AC8: USB | AD8: 5700 | AE8: 100 | AF8: 570000 | AH8: =IFERROR(INDEX($T$8:$Y$32, SMALL(IF(($X$8:$X$32>0),MATCH(ROW($T$8:$Y$32), ROW($T$8:$Y$32)), ""), ROWS($A$1:A1)), COLUMNS($A$1:A1)),"") -> 2 | AI8: =IFERROR(INDEX($T$8:$Y$32, SMALL(IF(($X$8:$X$32>0),MATCH(ROW($T$8:$Y$32), ROW($T$8:$Y$32)), ""), ROWS($A$1:B1)), COLUMNS($A$1:B1)),"") -> 2020-01-03 | AJ8: =IFERROR(INDEX($T$8:$Y$32, SMALL(IF(($X$8:$X$32>0),MATCH(ROW($T$8:$Y$32), ROW($T$8:$Y$32)), ""), ROWS($A$1:C1)), COLUMNS($A$1:C1)),"") -> USB | AK8: =IFERROR(INDEX($T$8:$Y$32, SMALL(IF(($X$8:$X$32>0),MATCH(ROW($T$8:$Y$32), ROW($T$8:$Y$32)), ""), ROWS($A$1:D1)), COLUMNS($A$1:D1)),"") -> 5700 | AL8: =IFERROR(INDEX($T$8:$Y$32, SMALL(IF(($X$8:$X$32>0),MATCH(ROW($T$8:$Y$32), ROW($T$8:$Y$32)), ""), ROWS($A$1:E1)), COLUMNS($A$1:E1)),"") -> 100 | AM8: =IFERROR(INDEX($T$8:$Y$32, SMALL(IF(($X$8:$X$32>0),MATCH(ROW($T$8:$Y$32), ROW($T$8:$Y$32)), ""), ROWS($A$1:F1)), COLUMNS($A$1:F1)),"") -> 570000
B9: 2 | C9: 2020-01-03 | D9: USB | E9: 5700 | F9: 200 | G9: =F9*E9 -> 1140000 | I9: 2020-01-03 | J9: USB | K9: 100 | M9: 2 | N9: =C9 -> 2020-01-03 | O9: =D9 -> USB | P9: =E9 -> 5700 | Q9: =MIN(F9,IF(SUMIF(J:J,O9,K:K)-SUMIFS(F:F,D:D,O9,C:C,"<"&N9)-SUMIFS($Q$7:Q8,$O$7:O8,O9,$N$7:N8,N9)<0,0,SUMIF(J:J,O9,K:K)-SUMIFS(F:F,D:D,O9,C:C,"<"&N9)-SUMIFS($Q$7:Q8,$O$7:O8,O9,$N$7:N8,N9))) -> 100 | R9: =Q9*P9 -> 570000 | T9: =B9 -> 2 | U9: =C9 -> 2020-01-03 | V9: USB | W9: 5700 | X9: 100 | Y9: =X9*W9 -> 570000 | AA9: 3 | AB9: 2020-01-05 | AC9: 노트북 | AD9: 3900 | AE9: 100 | AF9: 390000 | AH9: =IFERROR(INDEX($T$8:$Y$32, SMALL(IF(($X$8:$X$32>0),MATCH(ROW($T$8:$Y$32), ROW($T$8:$Y$32)), ""), ROWS($A$1:A2)), COLUMNS($A$1:A2)),"") -> 3 | AI9: =IFERROR(INDEX($T$8:$Y$32, SMALL(IF(($X$8:$X$32>0),MATCH(ROW($T$8:$Y$32), ROW($T$8:$Y$32)), ""), ROWS($A$1:B2)), COLUMNS($A$1:B2)),"") -> 2020-01-05 | AJ9: =IFERROR(INDEX($T$8:$Y$32, SMALL(IF(($X$8:$X$32>0),MATCH(ROW($T$8:$Y$32), ROW($T$8:$Y$32)), ""), ROWS($A$1:C2)), COLUMNS($A$1:C2)),"") -> 노트북 | AK9: =IFERROR(INDEX($T$8:$Y$32, SMALL(IF(($X$8:$X$32>0),MATCH(ROW($T$8:$Y$32), ROW($T$8:$Y$32)), ""), ROWS($A$1:D2)), COLUMNS($A$1:D2)),"") -> 3900 | AL9: =IFERROR(INDEX($T$8:$Y$32, SMALL(IF(($X$8:$X$32>0),MATCH(ROW($T$8:$Y$32), ROW($T$8:$Y$32)), ""), ROWS($A$1:E2)), COLUMNS($A$1:E2)),"") -> 100 | AM9: =IFERROR(INDEX($T$8:$Y$32, SMALL(IF(($X$8:$X$32>0),MATCH(ROW($T$8:$Y$32), ROW($T$8:$Y$32)), ""), ROWS($A$1:F2)), COLUMNS($A$1:F2)),"") -> 390000
B10: 3 | C10: 2020-01-05 | D10: 노트북 | E10: 3900 | F10: 100 | G10: 390000 | M10: 3 | N10: 2020-01-05 | O10: 노트북 | P10: 3900 | Q10: =MIN(F10,IF(SUMIF(J:J,O10,K:K)-SUMIFS(F:F,D:D,O10,C:C,"<"&N10)-SUMIFS($Q$7:Q9,$O$7:O9,O10,$N$7:N9,N10)<0,0,SUMIF(J:J,O10,K:K)-SUMIFS(F:F,D:D,O10,C:C,"<"&N10)-SUMIFS($Q$7:Q9,$O$7:O9,O10,$N$7:N9,N10))) -> 0 | R10: 0 | T10: 3 | U10: 2020-01-05 | V10: 노트북 | W10: 3900 | X10: 100 | Y10: 390000 | AA10: 4 | AB10: 2020-01-07 | AC10: USB | AD10: 8100 | AE10: 50 | AF10: 405000 | AH10: =IFERROR(INDEX($T$8:$Y$32, SMALL(IF(($X$8:$X$32>0),MATCH(ROW($T$8:$Y$32), ROW($T$8:$Y$32)), ""), ROWS($A$1:A3)), COLUMNS($A$1:A3)),"") -> 4 | AI10: =IFERROR(INDEX($T$8:$Y$32, SMALL(IF(($X$8:$X$32>0),MATCH(ROW($T$8:$Y$32), ROW($T$8:$Y$32)), ""), ROWS($A$1:B3)), COLUMNS($A$1:B3)),"") -> 2020-01-07 | AJ10: =IFERROR(INDEX($T$8:$Y$32, SMALL(IF(($X$8:$X$32>0),MATCH(ROW($T$8:$Y$32), ROW($T$8:$Y$32)), ""), ROWS($A$1:C3)), COLUMNS($A$1:C3)),"") -> USB | AK10: =IFERROR(INDEX($T$8:$Y$32, SMALL(IF(($X$8:$X$32>0),MATCH(ROW($T$8:$Y$32), ROW($T$8:$Y$32)), ""), ROWS($A$1:D3)), COLUMNS($A$1:D3)),"") -> 8100 | AL10: =IFERROR(INDEX($T$8:$Y$32, SMALL(IF(($X$8:$X$32>0),MATCH(ROW($T$8:$Y$32), ROW($T$8:$Y$32)), ""), ROWS($A$1:E3)), COLUMNS($A$1:E3)),"") -> 50 | AM10: =IFERROR(INDEX($T$8:$Y$32, SMALL(IF(($X$8:$X$32>0),MATCH(ROW($T$8:$Y$32), ROW($T$8:$Y$32)), ""), ROWS($A$1:F3)), COLUMNS($A$1:F3)),"") -> 405000
B11: 4 | C11: 2020-01-07 | D11: USB | E11: 8100 | F11: 50 | G11: 405000 | M11: 4 | N11: 2020-01-07 | O11: USB | P11: 8100 | Q11: =MIN(F11,IF(SUMIF(J:J,O11,K:K)-SUMIFS(F:F,D:D,O11,C:C,"<"&N11)-SUMIFS($Q$7:Q10,$O$7:O10,O11,$N$7:N10,N11)<0,0,SUMIF(J:J,O11,K:K)-SUMIFS(F:F,D:D,O11,C:C,"<"&N11)-SUMIFS($Q$7:Q10,$O$7:O10,O11,$N$7:N10,N11))) -> 0 | R11: 0 | T11: 4 | U11: 2020-01-07 | V11: USB | W11: 8100 | X11: 50 | Y11: 405000 | AA11: 5 | AB11: 2020-01-10 | AC11: 선풍기 | AD11: 5500 | AE11: 300 | AF11: 1650000 | AH11: =IFERROR(INDEX($T$8:$Y$32, SMALL(IF(($X$8:$X$32>0),MATCH(ROW($T$8:$Y$32), ROW($T$8:$Y$32)), ""), ROWS($A$1:A4)), COLUMNS($A$1:A4)),"") -> 5 | AI11: =IFERROR(INDEX($T$8:$Y$32, SMALL(IF(($X$8:$X$32>0),MATCH(ROW($T$8:$Y$32), ROW($T$8:$Y$32)), ""), ROWS($A$1:B4)), COLUMNS($A$1:B4)),"") -> 2020-01-10 | AJ11: =IFERROR(INDEX($T$8:$Y$32, SMALL(IF(($X$8:$X$32>0),MATCH(ROW($T$8:$Y$32), ROW($T$8:$Y$32)), ""), ROWS($A$1:C4)), COLUMNS($A$1:C4)),"") -> 선풍기 | AK11: =IFERROR(INDEX($T$8:$Y$32, SMALL(IF(($X$8:$X$32>0),MATCH(ROW($T$8:$Y$32), ROW($T$8:$Y$32)), ""), ROWS($A$1:D4)), COLUMNS($A$1:D4)),"") -> 5500 | AL11: =IFERROR(INDEX($T$8:$Y$32, SMALL(IF(($X$8:$X$32>0),MATCH(ROW($T$8:$Y$32), ROW($T$8:$Y$32)), ""), ROWS($A$1:E4)), COLUMNS($A$1:E4)),"") -> 300 | AM11: =IFERROR(INDEX($T$8:$Y$32, SMALL(IF(($X$8:$X$32>0),MATCH(ROW($T$8:$Y$32), ROW($T$8:$Y$32)), ""), ROWS($A$1:F4)), COLUMNS($A$1:F4)),"") -> 1650000
B12: 5 | C12: 2020-01-10 | D12: 선풍기 | E12: 5500 | F12: 300 | G12: 1650000 | M12: 5 | N12: 2020-01-10 | O12: 선풍기 | P12: 5500 | Q12: =MIN(F12,IF(SUMIF(J:J,O12,K:K)-SUMIFS(F:F,D:D,O12,C:C,"<"&N12)-SUMIFS($Q$7:Q11,$O$7:O11,O12,$N$7:N11,N12)<0,0,SUMIF(J:J,O12,K:K)-SUMIFS(F:F,D:D,O12,C:C,"<"&N12)-SUMIFS($Q$7:Q11,$O$7:O11,O12,$N$7:N11,N12))) -> 0 | R12: 0 | T12: 5 | U12: 2020-01-10 | V12: 선풍기 | W12: 5500 | X12: 300 | Y12: 1650000 | AA12: 6 | AB12: 2020-01-15 | AC12: 키보드 | AD12: 3650 | AE12: 200 | AF12: 730000 | AH12: =IFERROR(INDEX($T$8:$Y$32, SMALL(IF(($X$8:$X$32>0),MATCH(ROW($T$8:$Y$32), ROW($T$8:$Y$32)), ""), ROWS($A$1:A5)), COLUMNS($A$1:A5)),"") -> 6 | AI12: =IFERROR(INDEX($T$8:$Y$32, SMALL(IF(($X$8:$X$32>0),MATCH(ROW($T$8:$Y$32), ROW($T$8:$Y$32)), ""), ROWS($A$1:B5)), COLUMNS($A$1:B5)),"") -> 2020-01-15 | AJ12: =IFERROR(INDEX($T$8:$Y$32, SMALL(IF(($X$8:$X$32>0),MATCH(ROW($T$8:$Y$32), ROW($T$8:$Y$32)), ""), ROWS($A$1:C5)), COLUMNS($A$1:C5)),"") -> 키보드 | AK12: =IFERROR(INDEX($T$8:$Y$32, SMALL(IF(($X$8:$X$32>0),MATCH(ROW($T$8:$Y$32), ROW($T$8:$Y$32)), ""), ROWS($A$1:D5)), COLUMNS($A$1:D5)),"") -> 3650 | AL12: =IFERROR(INDEX($T$8:$Y$32, SMALL(IF(($X$8:$X$32>0),MATCH(ROW($T$8:$Y$32), ROW($T$8:$Y$32)), ""), ROWS($A$1:E5)), COLUMNS($A$1:E5)),"") -> 200 | AM12: =IFERROR(INDEX($T$8:$Y$32, SMALL(IF(($X$8:$X$32>0),MATCH(ROW($T$8:$Y$32), ROW($T$8:$Y$32)), ""), ROWS($A$1:F5)), COLUMNS($A$1:F5)),"") -> 730000
B13: 6 | C13: 2020-01-15 | D13: 키보드 | E13: 3650 | F13: 200 | G13: 730000 | M13: 6 | N13: 2020-01-15 | O13: 키보드 | P13: 3650 | Q13: =MIN(F13,IF(SUMIF(J:J,O13,K:K)-SUMIFS(F:F,D:D,O13,C:C,"<"&N13)-SUMIFS($Q$7:Q12,$O$7:O12,O13,$N$7:N12,N13)<0,0,SUMIF(J:J,O13,K:K)-SUMIFS(F:F,D:D,O13,C:C,"<"&N13)-SUMIFS($Q$7:Q12,$O$7:O12,O13,$N$7:N12,N13))) -> 0 | R13: 0 | T13: 6 | U13: 2020-01-15 | V13: 키보드 | W13: 3650 | X13: 200 | Y13: 730000 | AA13: 7 | AB13: 2020-01-17 | AC13: 마우스 | AD13: 7500 | AE13: 100 | AF13: 750000 | AH13: =IFERROR(INDEX($T$8:$Y$32, SMALL(IF(($X$8:$X$32>0),MATCH(ROW($T$8:$Y$32), ROW($T$8:$Y$32)), ""), ROWS($A$1:A6)), COLUMNS($A$1:A6)),"") -> 7 | AI13: =IFERROR(INDEX($T$8:$Y$32, SMALL(IF(($X$8:$X$32>0),MATCH(ROW($T$8:$Y$32), ROW($T$8:$Y$32)), ""), ROWS($A$1:B6)), COLUMNS($A$1:B6)),"") -> 2020-01-17 | AJ13: =IFERROR(INDEX($T$8:$Y$32, SMALL(IF(($X$8:$X$32>0),MATCH(ROW($T$8:$Y$32), ROW($T$8:$Y$32)), ""), ROWS($A$1:C6)), COLUMNS($A$1:C6)),"") -> 마우스 | AK13: =IFERROR(INDEX($T$8:$Y$32, SMALL(IF(($X$8:$X$32>0),MATCH(ROW($T$8:$Y$32), ROW($T$8:$Y$32)), ""), ROWS($A$1:D6)), COLUMNS($A$1:D6)),"") -> 7500 | AL13: =IFERROR(INDEX($T$8:$Y$32, SMALL(IF(($X$8:$X$32>0),MATCH(ROW($T$8:$Y$32), ROW($T$8:$Y$32)), ""), ROWS($A$1:E6)), COLUMNS($A$1:E6)),"") -> 100 | AM13: =IFERROR(INDEX($T$8:$Y$32, SMALL(IF(($X$8:$X$32>0),MATCH(ROW($T$8:$Y$32), ROW($T$8:$Y$32)), ""), ROWS($A$1:F6)), COLUMNS($A$1:F6)),"") -> 750000
B14: 7 | C14: 2020-01-17 | D14: 마우스 | E14: 7500 | F14: 100 | G14: 750000 | M14: 7 | N14: 2020-01-17 | O14: 마우스 | P14: 7500 | Q14: =MIN(F14,IF(SUMIF(J:J,O14,K:K)-SUMIFS(F:F,D:D,O14,C:C,"<"&N14)-SUMIFS($Q$7:Q13,$O$7:O13,O14,$N$7:N13,N14)<0,0,SUMIF(J:J,O14,K:K)-SUMIFS(F:F,D:D,O14,C:C,"<"&N14)-SUMIFS($Q$7:Q13,$O$7:O13,O14,$N$7:N13,N14))) -> 0 | R14: 0 | T14: 7 | U14: 2020-01-17 | V14: 마우스 | W14: 7500 | X14: 100 | Y14: 750000 | AA14: 8 | AB14: 2020-01-19 | AC14: USB | AD14: 3900 | AE14: 300 | AF14: 1170000 | AH14: =IFERROR(INDEX($T$8:$Y$32, SMALL(IF(($X$8:$X$32>0),MATCH(ROW($T$8:$Y$32), ROW($T$8:$Y$32)), ""), ROWS($A$1:A7)), COLUMNS($A$1:A7)),"") -> 8 | AI14: =IFERROR(INDEX($T$8:$Y$32, SMALL(IF(($X$8:$X$32>0),MATCH(ROW($T$8:$Y$32), ROW($T$8:$Y$32)), ""), ROWS($A$1:B7)), COLUMNS($A$1:B7)),"") -> 2020-01-19 | AJ14: =IFERROR(INDEX($T$8:$Y$32, SMALL(IF(($X$8:$X$32>0),MATCH(ROW($T$8:$Y$32), ROW($T$8:$Y$32)), ""), ROWS($A$1:C7)), COLUMNS($A$1:C7)),"") -> USB | AK14: =IFERROR(INDEX($T$8:$Y$32, SMALL(IF(($X$8:$X$32>0),MATCH(ROW($T$8:$Y$32), ROW($T$8:$Y$32)), ""), ROWS($A$1:D7)), COLUMNS($A$1:D7)),"") -> 3900 | AL14: =IFERROR(INDEX($T$8:$Y$32, SMALL(IF(($X$8:$X$32>0),MATCH(ROW($T$8:$Y$32), ROW($T$8:$Y$32)), ""), ROWS($A$1:E7)), COLUMNS($A$1:E7)),"") -> 300 | AM14: =IFERROR(INDEX($T$8:$Y$32, SMALL(IF(($X$8:$X$32>0),MATCH(ROW($T$8:$Y$32), ROW($T$8:$Y$32)), ""), ROWS($A$1:F7)), COLUMNS($A$1:F7)),"") -> 1170000
B15: 8 | C15: 2020-01-19 | D15: USB | E15: 3900 | F15: 300 | G15: 1170000 | M15: 8 | N15: 2020-01-19 | O15: USB | P15: 3900 | Q15: =MIN(F15,IF(SUMIF(J:J,O15,K:K)-SUMIFS(F:F,D:D,O15,C:C,"<"&N15)-SUMIFS($Q$7:Q14,$O$7:O14,O15,$N$7:N14,N15)<0,0,SUMIF(J:J,O15,K:K)-SUMIFS(F:F,D:D,O15,C:C,"<"&N15)-SUMIFS($Q$7:Q14,$O$7:O14,O15,$N$7:N14,N15))) -> 0 | R15: 0 | T15: 8 | U15: 2020-01-19 | V15: USB | W15: 3900 | X15: 300 | Y15: 1170000 | AA15: 9 | AB15: 2020-01-23 | AC15: 선풍기 | AD15: 7300 | AE15: 50 | AF15: 365000 | AH15: =IFERROR(INDEX($T$8:$Y$32, SMALL(IF(($X$8:$X$32>0),MATCH(ROW($T$8:$Y$32), ROW($T$8:$Y$32)), ""), ROWS($A$1:A8)), COLUMNS($A$1:A8)),"") -> 9 | AI15: =IFERROR(INDEX($T$8:$Y$32, SMALL(IF(($X$8:$X$32>0),MATCH(ROW($T$8:$Y$32), ROW($T$8:$Y$32)), ""), ROWS($A$1:B8)), COLUMNS($A$1:B8)),"") -> 2020-01-23 | AJ15: =IFERROR(INDEX($T$8:$Y$32, SMALL(IF(($X$8:$X$32>0),MATCH(ROW($T$8:$Y$32), ROW($T$8:$Y$32)), ""), ROWS($A$1:C8)), COLUMNS($A$1:C8)),"") -> 선풍기 | AK15: =IFERROR(INDEX($T$8:$Y$32, SMALL(IF(($X$8:$X$32>0),MATCH(ROW($T$8:$Y$32), ROW($T$8:$Y$32)), ""), ROWS($A$1:D8)), COLUMNS($A$1:D8)),"") -> 7300 | AL15: =IFERROR(INDEX($T$8:$Y$32, SMALL(IF(($X$8:$X$32>0),MATCH(ROW($T$8:$Y$32), ROW($T$8:$Y$32)), ""), ROWS($A$1:E8)), COLUMNS($A$1:E8)),"") -> 50 | AM15: =IFERROR(INDEX($T$8:$Y$32, SMALL(IF(($X$8:$X$32>0),MATCH(ROW($T$8:$Y$32), ROW($T$8:$Y$32)), ""), ROWS($A$1:F8)), COLUMNS($A$1:F8)),"") -> 365000
B16: 9 | C16: 2020-01-23 | D16: 선풍기 | E16: 7300 | F16: 50 | G16: 365000 | M16: 9 | N16: 2020-01-23 | O16: 선풍기 | P16: 7300 | Q16: =MIN(F16,IF(SUMIF(J:J,O16,K:K)-SUMIFS(F:F,D:D,O16,C:C,"<"&N16)-SUMIFS($Q$7:Q15,$O$7:O15,O16,$N$7:N15,N16)<0,0,SUMIF(J:J,O16,K:K)-SUMIFS(F:F,D:D,O16,C:C,"<"&N16)-SUMIFS($Q$7:Q15,$O$7:O15,O16,$N$7:N15,N16))) -> 0 | R16: 0 | T16: 9 | U16: 2020-01-23 | V16: 선풍기 | W16: 7300 | X16: 50 | Y16: 365000 | AH16: =IFERROR(INDEX($T$8:$Y$32, SMALL(IF(($X$8:$X$32>0),MATCH(ROW($T$8:$Y$32), ROW($T$8:$Y$32)), ""), ROWS($A$1:A9)), COLUMNS($A$1:A9)),"") ->  | AI16: =IFERROR(INDEX($T$8:$Y$32, SMALL(IF(($X$8:$X$32>0),MATCH(ROW($T$8:$Y$32), ROW($T$8:$Y$32)), ""), ROWS($A$1:B9)), COLUMNS($A$1:B9)),"") ->  | AJ16: =IFERROR(INDEX($T$8:$Y$32, SMALL(IF(($X$8:$X$32>0),MATCH(ROW($T$8:$Y$32), ROW($T$8:$Y$32)), ""), ROWS($A$1:C9)), COLUMNS($A$1:C9)),"") ->  | AK16: =IFERROR(INDEX($T$8:$Y$32, SMALL(IF(($X$8:$X$32>0),MATCH(ROW($T$8:$Y$32), ROW($T$8:$Y$32)), ""), ROWS($A$1:D9)), COLUMNS($A$1:D9)),"") ->  | AL16: =IFERROR(INDEX($T$8:$Y$32, SMALL(IF(($X$8:$X$32>0),MATCH(ROW($T$8:$Y$32), ROW($T$8:$Y$32)), ""), ROWS($A$1:E9)), COLUMNS($A$1:E9)),"") ->  | AM16: =IFERROR(INDEX($T$8:$Y$32, SMALL(IF(($X$8:$X$32>0),MATCH(ROW($T$8:$Y$32), ROW($T$8:$Y$32)), ""), ROWS($A$1:F9)), COLUMNS($A$1:F9)),"") -> 
AH17: =IFERROR(INDEX($T$8:$Y$32, SMALL(IF(($X$8:$X$32>0),MATCH(ROW($T$8:$Y$32), ROW($T$8:$Y$32)), ""), ROWS($A$1:A10)), COLUMNS($A$1:A10)),"") ->  | AI17: =IFERROR(INDEX($T$8:$Y$32, SMALL(IF(($X$8:$X$32>0),MATCH(ROW($T$8:$Y$32), ROW($T$8:$Y$32)), ""), ROWS($A$1:B10)), COLUMNS($A$1:B10)),"") ->  | AJ17: =IFERROR(INDEX($T$8:$Y$32, SMALL(IF(($X$8:$X$32>0),MATCH(ROW($T$8:$Y$32), ROW($T$8:$Y$32)), ""), ROWS($A$1:C10)), COLUMNS($A$1:C10)),"") ->  | AK17: =IFERROR(INDEX($T$8:$Y$32, SMALL(IF(($X$8:$X$32>0),MATCH(ROW($T$8:$Y$32), ROW($T$8:$Y$32)), ""), ROWS($A$1:D10)), COLUMNS($A$1:D10)),"") ->  | AL17: =IFERROR(INDEX($T$8:$Y$32, SMALL(IF(($X$8:$X$32>0),MATCH(ROW($T$8:$Y$32), ROW($T$8:$Y$32)), ""), ROWS($A$1:E10)), COLUMNS($A$1:E10)),"") ->  | AM17: =IFERROR(INDEX($T$8:$Y$32, SMALL(IF(($X$8:$X$32>0),MATCH(ROW($T$8:$Y$32), ROW($T$8:$Y$32)), ""), ROWS($A$1:F10)), COLUMNS($A$1:F10)),"") -> 
AH18: =IFERROR(INDEX($T$8:$Y$32, SMALL(IF(($X$8:$X$32>0),MATCH(ROW($T$8:$Y$32), ROW($T$8:$Y$32)), ""), ROWS($A$1:A11)), COLUMNS($A$1:A11)),"") ->  | AI18: =IFERROR(INDEX($T$8:$Y$32, SMALL(IF(($X$8:$X$32>0),MATCH(ROW($T$8:$Y$32), ROW($T$8:$Y$32)), ""), ROWS($A$1:B11)), COLUMNS($A$1:B11)),"") ->  | AJ18: =IFERROR(INDEX($T$8:$Y$32, SMALL(IF(($X$8:$X$32>0),MATCH(ROW($T$8:$Y$32), ROW($T$8:$Y$32)), ""), ROWS($A$1:C11)), COLUMNS($A$1:C11)),"") ->  | AK18: =IFERROR(INDEX($T$8:$Y$32, SMALL(IF(($X$8:$X$32>0),MATCH(ROW($T$8:$Y$32), ROW($T$8:$Y$32)), ""), ROWS($A$1:D11)), COLUMNS($A$1:D11)),"") ->  | AL18: =IFERROR(INDEX($T$8:$Y$32, SMALL(IF(($X$8:$X$32>0),MATCH(ROW($T$8:$Y$32), ROW($T$8:$Y$32)), ""), ROWS($A$1:E11)), COLUMNS($A$1:E11)),"") ->  | AM18: =IFERROR(INDEX($T$8:$Y$32, SMALL(IF(($X$8:$X$32>0),MATCH(ROW($T$8:$Y$32), ROW($T$8:$Y$32)), ""), ROWS($A$1:F11)), COLUMNS($A$1:F11)),"") -> 
AH19: =IFERROR(INDEX($T$8:$Y$32, SMALL(IF(($X$8:$X$32>0),MATCH(ROW($T$8:$Y$32), ROW($T$8:$Y$32)), ""), ROWS($A$1:A12)), COLUMNS($A$1:A12)),"") ->  | AI19: =IFERROR(INDEX($T$8:$Y$32, SMALL(IF(($X$8:$X$32>0),MATCH(ROW($T$8:$Y$32), ROW($T$8:$Y$32)), ""), ROWS($A$1:B12)), COLUMNS($A$1:B12)),"") ->  | AJ19: =IFERROR(INDEX($T$8:$Y$32, SMALL(IF(($X$8:$X$32>0),MATCH(ROW($T$8:$Y$32), ROW($T$8:$Y$32)), ""), ROWS($A$1:C12)), COLUMNS($A$1:C12)),"") ->  | AK19: =IFERROR(INDEX($T$8:$Y$32, SMALL(IF(($X$8:$X$32>0),MATCH(ROW($T$8:$Y$32), ROW($T$8:$Y$32)), ""), ROWS($A$1:D12)), COLUMNS($A$1:D12)),"") ->  | AL19: =IFERROR(INDEX($T$8:$Y$32, SMALL(IF(($X$8:$X$32>0),MATCH(ROW($T$8:$Y$32), ROW($T$8:$Y$32)), ""), ROWS($A$1:E12)), COLUMNS($A$1:E12)),"") ->  | AM19: =IFERROR(INDEX($T$8:$Y$32, SMALL(IF(($X$8:$X$32>0),MATCH(ROW($T$8:$Y$32), ROW($T$8:$Y$32)), ""), ROWS($A$1:F12)), COLUMNS($A$1:F12)),"") -> 
AH20: =IFERROR(INDEX($T$8:$Y$32, SMALL(IF(($X$8:$X$32>0),MATCH(ROW($T$8:$Y$32), ROW($T$8:$Y$32)), ""), ROWS($A$1:A13)), COLUMNS($A$1:A13)),"") ->  | AI20: =IFERROR(INDEX($T$8:$Y$32, SMALL(IF(($X$8:$X$32>0),MATCH(ROW($T$8:$Y$32), ROW($T$8:$Y$32)), ""), ROWS($A$1:B13)), COLUMNS($A$1:B13)),"") ->  | AJ20: =IFERROR(INDEX($T$8:$Y$32, SMALL(IF(($X$8:$X$32>0),MATCH(ROW($T$8:$Y$32), ROW($T$8:$Y$32)), ""), ROWS($A$1:C13)), COLUMNS($A$1:C13)),"") ->  | AK20: =IFERROR(INDEX($T$8:$Y$32, SMALL(IF(($X$8:$X$32>0),MATCH(ROW($T$8:$Y$32), ROW($T$8:$Y$32)), ""), ROWS($A$1:D13)), COLUMNS($A$1:D13)),"") ->  | AL20: =IFERROR(INDEX($T$8:$Y$32, SMALL(IF(($X$8:$X$32>0),MATCH(ROW($T$8:$Y$32), ROW($T$8:$Y$32)), ""), ROWS($A$1:E13)), COLUMNS($A$1:E13)),"") ->  | AM20: =IFERROR(INDEX($T$8:$Y$32, SMALL(IF(($X$8:$X$32>0),MATCH(ROW($T$8:$Y$32), ROW($T$8:$Y$32)), ""), ROWS($A$1:F13)), COLUMNS($A$1:F13)),"") -> 
AH21: =IFERROR(INDEX($T$8:$Y$32, SMALL(IF(($X$8:$X$32>0),MATCH(ROW($T$8:$Y$32), ROW($T$8:$Y$32)), ""), ROWS($A$1:A14)), COLUMNS($A$1:A14)),"") ->  | AI21: =IFERROR(INDEX($T$8:$Y$32, SMALL(IF(($X$8:$X$32>0),MATCH(ROW($T$8:$Y$32), ROW($T$8:$Y$32)), ""), ROWS($A$1:B14)), COLUMNS($A$1:B14)),"") ->  | AJ21: =IFERROR(INDEX($T$8:$Y$32, SMALL(IF(($X$8:$X$32>0),MATCH(ROW($T$8:$Y$32), ROW($T$8:$Y$32)), ""), ROWS($A$1:C14)), COLUMNS($A$1:C14)),"") ->  | AK21: =IFERROR(INDEX($T$8:$Y$32, SMALL(IF(($X$8:$X$32>0),MATCH(ROW($T$8:$Y$32), ROW($T$8:$Y$32)), ""), ROWS($A$1:D14)), COLUMNS($A$1:D14)),"") ->  | AL21: =IFERROR(INDEX($T$8:$Y$32, SMALL(IF(($X$8:$X$32>0),MATCH(ROW($T$8:$Y$32), ROW($T$8:$Y$32)), ""), ROWS($A$1:E14)), COLUMNS($A$1:E14)),"") ->  | AM21: =IFERROR(INDEX($T$8:$Y$32, SMALL(IF(($X$8:$X$32>0),MATCH(ROW($T$8:$Y$32), ROW($T$8:$Y$32)), ""), ROWS($A$1:F14)), COLUMNS($A$1:F14)),"") -> 
AH22: =IFERROR(INDEX($T$8:$Y$32, SMALL(IF(($X$8:$X$32>0),MATCH(ROW($T$8:$Y$32), ROW($T$8:$Y$32)), ""), ROWS($A$1:A15)), COLUMNS($A$1:A15)),"") ->  | AI22: =IFERROR(INDEX($T$8:$Y$32, SMALL(IF(($X$8:$X$32>0),MATCH(ROW($T$8:$Y$32), ROW($T$8:$Y$32)), ""), ROWS($A$1:B15)), COLUMNS($A$1:B15)),"") ->  | AJ22: =IFERROR(INDEX($T$8:$Y$32, SMALL(IF(($X$8:$X$32>0),MATCH(ROW($T$8:$Y$32), ROW($T$8:$Y$32)), ""), ROWS($A$1:C15)), COLUMNS($A$1:C15)),"") ->  | AK22: =IFERROR(INDEX($T$8:$Y$32, SMALL(IF(($X$8:$X$32>0),MATCH(ROW($T$8:$Y$32), ROW($T$8:$Y$32)), ""), ROWS($A$1:D15)), COLUMNS($A$1:D15)),"") ->  | AL22: =IFERROR(INDEX($T$8:$Y$32, SMALL(IF(($X$8:$X$32>0),MATCH(ROW($T$8:$Y$32), ROW($T$8:$Y$32)), ""), ROWS($A$1:E15)), COLUMNS($A$1:E15)),"") ->  | AM22: =IFERROR(INDEX($T$8:$Y$32, SMALL(IF(($X$8:$X$32>0),MATCH(ROW($T$8:$Y$32), ROW($T$8:$Y$32)), ""), ROWS($A$1:F15)), COLUMNS($A$1:F15)),"") -> 
AH23: =IFERROR(INDEX($T$8:$Y$32, SMALL(IF(($X$8:$X$32>0),MATCH(ROW($T$8:$Y$32), ROW($T$8:$Y$32)), ""), ROWS($A$1:A16)), COLUMNS($A$1:A16)),"") ->  | AI23: =IFERROR(INDEX($T$8:$Y$32, SMALL(IF(($X$8:$X$32>0),MATCH(ROW($T$8:$Y$32), ROW($T$8:$Y$32)), ""), ROWS($A$1:B16)), COLUMNS($A$1:B16)),"") ->  | AJ23: =IFERROR(INDEX($T$8:$Y$32, SMALL(IF(($X$8:$X$32>0),MATCH(ROW($T$8:$Y$32), ROW($T$8:$Y$32)), ""), ROWS($A$1:C16)), COLUMNS($A$1:C16)),"") ->  | AK23: =IFERROR(INDEX($T$8:$Y$32, SMALL(IF(($X$8:$X$32>0),MATCH(ROW($T$8:$Y$32), ROW($T$8:$Y$32)), ""), ROWS($A$1:D16)), COLUMNS($A$1:D16)),"") ->  | AL23: =IFERROR(INDEX($T$8:$Y$32, SMALL(IF(($X$8:$X$32>0),MATCH(ROW($T$8:$Y$32), ROW($T$8:$Y$32)), ""), ROWS($A$1:E16)), COLUMNS($A$1:E16)),"") ->  | AM23: =IFERROR(INDEX($T$8:$Y$32, SMALL(IF(($X$8:$X$32>0),MATCH(ROW($T$8:$Y$32), ROW($T$8:$Y$32)), ""), ROWS($A$1:F16)), COLUMNS($A$1:F16)),"") -> 
AH24: =IFERROR(INDEX($T$8:$Y$32, SMALL(IF(($X$8:$X$32>0),MATCH(ROW($T$8:$Y$32), ROW($T$8:$Y$32)), ""), ROWS($A$1:A17)), COLUMNS($A$1:A17)),"") ->  | AI24: =IFERROR(INDEX($T$8:$Y$32, SMALL(IF(($X$8:$X$32>0),MATCH(ROW($T$8:$Y$32), ROW($T$8:$Y$32)), ""), ROWS($A$1:B17)), COLUMNS($A$1:B17)),"") ->  | AJ24: =IFERROR(INDEX($T$8:$Y$32, SMALL(IF(($X$8:$X$32>0),MATCH(ROW($T$8:$Y$32), ROW($T$8:$Y$32)), ""), ROWS($A$1:C17)), COLUMNS($A$1:C17)),"") ->  | AK24: =IFERROR(INDEX($T$8:$Y$32, SMALL(IF(($X$8:$X$32>0),MATCH(ROW($T$8:$Y$32), ROW($T$8:$Y$32)), ""), ROWS($A$1:D17)), COLUMNS($A$1:D17)),"") ->  | AL24: =IFERROR(INDEX($T$8:$Y$32, SMALL(IF(($X$8:$X$32>0),MATCH(ROW($T$8:$Y$32), ROW($T$8:$Y$32)), ""), ROWS($A$1:E17)), COLUMNS($A$1:E17)),"") ->  | AM24: =IFERROR(INDEX($T$8:$Y$32, SMALL(IF(($X$8:$X$32>0),MATCH(ROW($T$8:$Y$32), ROW($T$8:$Y$32)), ""), ROWS($A$1:F17)), COLUMNS($A$1:F17)),"") -> 
AH25: =IFERROR(INDEX($T$8:$Y$32, SMALL(IF(($X$8:$X$32>0),MATCH(ROW($T$8:$Y$32), ROW($T$8:$Y$32)), ""), ROWS($A$1:A18)), COLUMNS($A$1:A18)),"") ->  | AI25: =IFERROR(INDEX($T$8:$Y$32, SMALL(IF(($X$8:$X$32>0),MATCH(ROW($T$8:$Y$32), ROW($T$8:$Y$32)), ""), ROWS($A$1:B18)), COLUMNS($A$1:B18)),"") ->  | AJ25: =IFERROR(INDEX($T$8:$Y$32, SMALL(IF(($X$8:$X$32>0),MATCH(ROW($T$8:$Y$32), ROW($T$8:$Y$32)), ""), ROWS($A$1:C18)), COLUMNS($A$1:C18)),"") ->  | AK25: =IFERROR(INDEX($T$8:$Y$32, SMALL(IF(($X$8:$X$32>0),MATCH(ROW($T$8:$Y$32), ROW($T$8:$Y$32)), ""), ROWS($A$1:D18)), COLUMNS($A$1:D18)),"") ->  | AL25: =IFERROR(INDEX($T$8:$Y$32, SMALL(IF(($X$8:$X$32>0),MATCH(ROW($T$8:$Y$32), ROW($T$8:$Y$32)), ""), ROWS($A$1:E18)), COLUMNS($A$1:E18)),"") ->  | AM25: =IFERROR(INDEX($T$8:$Y$32, SMALL(IF(($X$8:$X$32>0),MATCH(ROW($T$8:$Y$32), ROW($T$8:$Y$32)), ""), ROWS($A$1:F18)), COLUMNS($A$1:F18)),"") -> 
AH26: =IFERROR(INDEX($T$8:$Y$32, SMALL(IF(($X$8:$X$32>0),MATCH(ROW($T$8:$Y$32), ROW($T$8:$Y$32)), ""), ROWS($A$1:A19)), COLUMNS($A$1:A19)),"") ->  | AI26: =IFERROR(INDEX($T$8:$Y$32, SMALL(IF(($X$8:$X$32>0),MATCH(ROW($T$8:$Y$32), ROW($T$8:$Y$32)), ""), ROWS($A$1:B19)), COLUMNS($A$1:B19)),"") ->  | AJ26: =IFERROR(INDEX($T$8:$Y$32, SMALL(IF(($X$8:$X$32>0),MATCH(ROW($T$8:$Y$32), ROW($T$8:$Y$32)), ""), ROWS($A$1:C19)), COLUMNS($A$1:C19)),"") ->  | AK26: =IFERROR(INDEX($T$8:$Y$32, SMALL(IF(($X$8:$X$32>0),MATCH(ROW($T$8:$Y$32), ROW($T$8:$Y$32)), ""), ROWS($A$1:D19)), COLUMNS($A$1:D19)),"") ->  | AL26: =IFERROR(INDEX($T$8:$Y$32, SMALL(IF(($X$8:$X$32>0),MATCH(ROW($T$8:$Y$32), ROW($T$8:$Y$32)), ""), ROWS($A$1:E19)), COLUMNS($A$1:E19)),"") ->  | AM26: =IFERROR(INDEX($T$8:$Y$32, SMALL(IF(($X$8:$X$32>0),MATCH(ROW($T$8:$Y$32), ROW($T$8:$Y$32)), ""), ROWS($A$1:F19)), COLUMNS($A$1:F19)),"") -> 
AH27: =IFERROR(INDEX($T$8:$Y$32, SMALL(IF(($X$8:$X$32>0),MATCH(ROW($T$8:$Y$32), ROW($T$8:$Y$32)), ""), ROWS($A$1:A20)), COLUMNS($A$1:A20)),"") ->  | AI27: =IFERROR(INDEX($T$8:$Y$32, SMALL(IF(($X$8:$X$32>0),MATCH(ROW($T$8:$Y$32), ROW($T$8:$Y$32)), ""), ROWS($A$1:B20)), COLUMNS($A$1:B20)),"") ->  | AJ27: =IFERROR(INDEX($T$8:$Y$32, SMALL(IF(($X$8:$X$32>0),MATCH(ROW($T$8:$Y$32), ROW($T$8:$Y$32)), ""), ROWS($A$1:C20)), COLUMNS($A$1:C20)),"") ->  | AK27: =IFERROR(INDEX($T$8:$Y$32, SMALL(IF(($X$8:$X$32>0),MATCH(ROW($T$8:$Y$32), ROW($T$8:$Y$32)), ""), ROWS($A$1:D20)), COLUMNS($A$1:D20)),"") ->  | AL27: =IFERROR(INDEX($T$8:$Y$32, SMALL(IF(($X$8:$X$32>0),MATCH(ROW($T$8:$Y$32), ROW($T$8:$Y$32)), ""), ROWS($A$1:E20)), COLUMNS($A$1:E20)),"") ->  | AM27: =IFERROR(INDEX($T$8:$Y$32, SMALL(IF(($X$8:$X$32>0),MATCH(ROW($T$8:$Y$32), ROW($T$8:$Y$32)), ""), ROWS($A$1:F20)), COLUMNS($A$1:F20)),"") -> 
AH28: =IFERROR(INDEX($T$8:$Y$32, SMALL(IF(($X$8:$X$32>0),MATCH(ROW($T$8:$Y$32), ROW($T$8:$Y$32)), ""), ROWS($A$1:A21)), COLUMNS($A$1:A21)),"") ->  | AI28: =IFERROR(INDEX($T$8:$Y$32, SMALL(IF(($X$8:$X$32>0),MATCH(ROW($T$8:$Y$32), ROW($T$8:$Y$32)), ""), ROWS($A$1:B21)), COLUMNS($A$1:B21)),"") ->  | AJ28: =IFERROR(INDEX($T$8:$Y$32, SMALL(IF(($X$8:$X$32>0),MATCH(ROW($T$8:$Y$32), ROW($T$8:$Y$32)), ""), ROWS($A$1:C21)), COLUMNS($A$1:C21)),"") ->  | AK28: =IFERROR(INDEX($T$8:$Y$32, SMALL(IF(($X$8:$X$32>0),MATCH(ROW($T$8:$Y$32), ROW($T$8:$Y$32)), ""), ROWS($A$1:D21)), COLUMNS($A$1:D21)),"") ->  | AL28: =IFERROR(INDEX($T$8:$Y$32, SMALL(IF(($X$8:$X$32>0),MATCH(ROW($T$8:$Y$32), ROW($T$8:$Y$32)), ""), ROWS($A$1:E21)), COLUMNS($A$1:E21)),"") ->  | AM28: =IFERROR(INDEX($T$8:$Y$32, SMALL(IF(($X$8:$X$32>0),MATCH(ROW($T$8:$Y$32), ROW($T$8:$Y$32)), ""), ROWS($A$1:F21)), COLUMNS($A$1:F21)),"") -> 
AH29: =IFERROR(INDEX($T$8:$Y$32, SMALL(IF(($X$8:$X$32>0),MATCH(ROW($T$8:$Y$32), ROW($T$8:$Y$32)), ""), ROWS($A$1:A22)), COLUMNS($A$1:A22)),"") ->  | AI29: =IFERROR(INDEX($T$8:$Y$32, SMALL(IF(($X$8:$X$32>0),MATCH(ROW($T$8:$Y$32), ROW($T$8:$Y$32)), ""), ROWS($A$1:B22)), COLUMNS($A$1:B22)),"") ->  | AJ29: =IFERROR(INDEX($T$8:$Y$32, SMALL(IF(($X$8:$X$32>0),MATCH(ROW($T$8:$Y$32), ROW($T$8:$Y$32)), ""), ROWS($A$1:C22)), COLUMNS($A$1:C22)),"") ->  | AK29: =IFERROR(INDEX($T$8:$Y$32, SMALL(IF(($X$8:$X$32>0),MATCH(ROW($T$8:$Y$32), ROW($T$8:$Y$32)), ""), ROWS($A$1:D22)), COLUMNS($A$1:D22)),"") ->  | AL29: =IFERROR(INDEX($T$8:$Y$32, SMALL(IF(($X$8:$X$32>0),MATCH(ROW($T$8:$Y$32), ROW($T$8:$Y$32)), ""), ROWS($A$1:E22)), COLUMNS($A$1:E22)),"") ->  | AM29: =IFERROR(INDEX($T$8:$Y$32, SMALL(IF(($X$8:$X$32>0),MATCH(ROW($T$8:$Y$32), ROW($T$8:$Y$32)), ""), ROWS($A$1:F22)), COLUMNS($A$1:F22)),"") -> 
AH30: =IFERROR(INDEX($T$8:$Y$32, SMALL(IF(($X$8:$X$32>0),MATCH(ROW($T$8:$Y$32), ROW($T$8:$Y$32)), ""), ROWS($A$1:A23)), COLUMNS($A$1:A23)),"") ->  | AI30: =IFERROR(INDEX($T$8:$Y$32, SMALL(IF(($X$8:$X$32>0),MATCH(ROW($T$8:$Y$32), ROW($T$8:$Y$32)), ""), ROWS($A$1:B23)), COLUMNS($A$1:B23)),"") ->  | AJ30: =IFERROR(INDEX($T$8:$Y$32, SMALL(IF(($X$8:$X$32>0),MATCH(ROW($T$8:$Y$32), ROW($T$8:$Y$32)), ""), ROWS($A$1:C23)), COLUMNS($A$1:C23)),"") ->  | AK30: =IFERROR(INDEX($T$8:$Y$32, SMALL(IF(($X$8:$X$32>0),MATCH(ROW($T$8:$Y$32), ROW($T$8:$Y$32)), ""), ROWS($A$1:D23)), COLUMNS($A$1:D23)),"") ->  | AL30: =IFERROR(INDEX($T$8:$Y$32, SMALL(IF(($X$8:$X$32>0),MATCH(ROW($T$8:$Y$32), ROW($T$8:$Y$32)), ""), ROWS($A$1:E23)), COLUMNS($A$1:E23)),"") ->  | AM30: =IFERROR(INDEX($T$8:$Y$32, SMALL(IF(($X$8:$X$32>0),MATCH(ROW($T$8:$Y$32), ROW($T$8:$Y$32)), ""), ROWS($A$1:F23)), COLUMNS($A$1:F23)),"") -> 
AH31: =IFERROR(INDEX($T$8:$Y$32, SMALL(IF(($X$8:$X$32>0),MATCH(ROW($T$8:$Y$32), ROW($T$8:$Y$32)), ""), ROWS($A$1:A24)), COLUMNS($A$1:A24)),"") ->  | AI31: =IFERROR(INDEX($T$8:$Y$32, SMALL(IF(($X$8:$X$32>0),MATCH(ROW($T$8:$Y$32), ROW($T$8:$Y$32)), ""), ROWS($A$1:B24)), COLUMNS($A$1:B24)),"") ->  | AJ31: =IFERROR(INDEX($T$8:$Y$32, SMALL(IF(($X$8:$X$32>0),MATCH(ROW($T$8:$Y$32), ROW($T$8:$Y$32)), ""), ROWS($A$1:C24)), COLUMNS($A$1:C24)),"") ->  | AK31: =IFERROR(INDEX($T$8:$Y$32, SMALL(IF(($X$8:$X$32>0),MATCH(ROW($T$8:$Y$32), ROW($T$8:$Y$32)), ""), ROWS($A$1:D24)), COLUMNS($A$1:D24)),"") ->  | AL31: =IFERROR(INDEX($T$8:$Y$32, SMALL(IF(($X$8:$X$32>0),MATCH(ROW($T$8:$Y$32), ROW($T$8:$Y$32)), ""), ROWS($A$1:E24)), COLUMNS($A$1:E24)),"") ->  | AM31: =IFERROR(INDEX($T$8:$Y$32, SMALL(IF(($X$8:$X$32>0),MATCH(ROW($T$8:$Y$32), ROW($T$8:$Y$32)), ""), ROWS($A$1:F24)), COLUMNS($A$1:F24)),"") -> 
AH32: =IFERROR(INDEX($T$8:$Y$32, SMALL(IF(($X$8:$X$32>0),MATCH(ROW($T$8:$Y$32), ROW($T$8:$Y$32)), ""), ROWS($A$1:A25)), COLUMNS($A$1:A25)),"") ->  | AI32: =IFERROR(INDEX($T$8:$Y$32, SMALL(IF(($X$8:$X$32>0),MATCH(ROW($T$8:$Y$32), ROW($T$8:$Y$32)), ""), ROWS($A$1:B25)), COLUMNS($A$1:B25)),"") ->  | AJ32: =IFERROR(INDEX($T$8:$Y$32, SMALL(IF(($X$8:$X$32>0),MATCH(ROW($T$8:$Y$32), ROW($T$8:$Y$32)), ""), ROWS($A$1:C25)), COLUMNS($A$1:C25)),"") ->  | AK32: =IFERROR(INDEX($T$8:$Y$32, SMALL(IF(($X$8:$X$32>0),MATCH(ROW($T$8:$Y$32), ROW($T$8:$Y$32)), ""), ROWS($A$1:D25)), COLUMNS($A$1:D25)),"") ->  | AL32: =IFERROR(INDEX($T$8:$Y$32, SMALL(IF(($X$8:$X$32>0),MATCH(ROW($T$8:$Y$32), ROW($T$8:$Y$32)), ""), ROWS($A$1:E25)), COLUMNS($A$1:E25)),"") ->  | AM32: =IFERROR(INDEX($T$8:$Y$32, SMALL(IF(($X$8:$X$32>0),MATCH(ROW($T$8:$Y$32), ROW($T$8:$Y$32)), ""), ROWS($A$1:F25)), COLUMNS($A$1:F25)),"") -> 

Sheet 수고하셨습니다
